Cogmind - Beta 17 @@@ ROGUE MODE // 2026.06.29 @ 19:35:05 Player: Conwew Result: Destroyed by U6-1RZ(R) with Subdweller Laser Performance ------------- Evolutions (0) 0 Regions Visited (3) 600 Robots Destroyed (6) 30 Value Destroyed (229) 229 Prototype IDs (0) 0 Alien Tech Used (0) 0 Bonus (60) 60 TOTAL SCORE: 919 Bonus ------- Follower Combat Kills 60 Cogmind --------- Core Integrity 0/250 Matter 276/300 Energy 96/100 System Corruption 0% Temperature Cool (62) Movement Core (50) Location -10/Subcaves Parts ------- > --- POWER (1) -------- (None) > --- PROPULSION (2) --- (None) > --- UTILITY (2) ------ Improved Targeting Computer Improved Targeting Computer > --- WEAPON (2) ------- (None) > --- INVENTORY (5) ---- Ion Engine Heat Sink Experimental Sensor Array Improved Targeting Computer Improved Targeting Computer Peak State ------------ > --- POWER ------------ Light Nuclear Core > --- PROPULSION ------- Aluminum Leg Aluminum Leg > --- UTILITY ---------- Improved Targeting Computer Improved Targeting Computer > --- WEAPON ----------- Subdweller Laser Assault Rifle > --- INVENTORY -------- Ion Engine Heat Sink Experimental Sensor Array Improved Targeting Computer Improved Targeting Computer [Rating: 13] Favorites ----------- Power Light Nuclear Core Engine Light Ion Engine Power Core Light Nuclear Core Propulsion Aluminum Leg Leg Aluminum Leg Utility Improved Targeting Computer Processor Improved Targeting Computer Weapon Medium Laser Energy Gun Medium Laser Ballistic Gun Assault Rifle Build | -11 -10 -10 -10 ------- Run | Yrd Mat Min Sub Slots Evolved . | . . . . Power . | . . . . Propulsion . | . . . . Utility . | . . . . Weapon . | . . . . Parts Attached 12 | 5 4 1 2 Power 2 | 1 1 . . Engine 1 | 1 . . . Core 1 | . 1 . . Reactor . | . . . . Propulsion 3 | 2 . 1 . Treads . | . . . . Leg 3 | 2 . 1 . Wheel . | . . . . Hover . | . . . . Flight . | . . . . Utility 3 | . 3 . . Device . | . . . . Storage . | . . . . Processor 3 | . 3 . . Hackware . | . . . . Protection . | . . . . Artifact . | . . . . Weapon 4 | 2 . . 2 Energy Gun 3 | 2 . . 1 Energy Cannon . | . . . . Ballistic Gun 1 | . . . 1 Ballistic Cannon . | . . . . Launcher . | . . . . Special Weapon . | . . . . Impact Weapon . | . . . . Slashing Weapon . | . . . . Piercing Weapon . | . . . . Special Melee Weapon . | . . . . Unidentified Prototypes . | . . . . Parts Lost 8 | . 1 . 7 Power 2 | . 1 . 1 Propulsion 2 | . . . 2 Utility . | . . . . Weapon 4 | . . . 4 Highest Loss Streak 5 | . 1 . 5 To Critical Strikes . | . . . . Average Backups 3 | . 1 5 5 Power . | . . 1 1 Propulsion . | . . . . Utility 2 | . . 3 4 Weapon . | . . . . Tool/Special . | . . . . Unused Backups 6 | . 1 . 5 Power 1 | . . . 1 Propulsion 1 | . 1 . . Utility 4 | . . . 4 Weapon . | . . . . Tool/Special . | . . . . Average Slot Usage (%) 92 | . 83 100 95 Engine 5 | . 13 . . Core 8 | . . 14 13 Leg 27 | . 28 28 26 Processor 22 | . 12 28 28 Energy Gun 24 | . 28 28 14 Ballistic Gun 2 | . . . 10 Peak Build Rating 13 | 5 11 12 13 Average Rating 9 | 3 6 11 11 On Entrance 7 | . 5 11 12 Avg Prop Armor Cover (%) . | . . . . Naked Turns . | . . . . Heaviest Build 11 | 7 9 9 11 Greatest Support 20 | 20 20 20 20 Greatest Overweight (x) 2 | 2 . . 1 Average Overweight (x) . | . . . . Largest Inventory Capacity 5 | 5 5 5 5 Average Capacity 5 | 5 5 5 5 Most Carried 5 | . 5 5 5 Average Carried 3 | . 1 4 5 Final Capacity 5 | 5 5 5 5 Final Carried 5 | . 5 5 5 Class Distribution -------------------- 100% | Mutant Dominant Class ---------------- Mutant | -10/Materials Mutant | -10/Mines Mutant | -10/Subcaves Resources | -11 -10 -10 -10 ----------- Run | Yrd Mat Min Sub Matter Collected 324 | 182 88 25 29 Remotely . | . . . . Salvage Created 250 | . 187 . 63 Parts 18 | . 12 . 6 Haulers Intercepted . | . . . . Recyclers Shooed . | . . . . Parts Field Recycled . | . . . . Retrieved Matter . | . . . . Parts Self-Destructed 3 | . . . 3 Prevented . | . . . . Parts Restored . | . . . . Kills | -11 -10 -10 -10 ------- Run | Yrd Mat Min Sub Combat Hostiles Destroyed 6 | . 4 . 2 Guns 5 | . 3 . 2 Classes Destroyed 2 | . 1 . 1 Grunt 4 | . 4 . . Subdweller 2 | . . . 2 Best Kill Streak 2 | . 2 . 1 Combat Bots Only 2 | . 2 . 1 Max Kills in Single Turn 1 | . 1 . 1 Gunslinging . | . . . . Exploded . | . . . . Melee . | . . . . Uniques/NPCs Destroyed . | . . . . Combat | -11 -10 -10 -10 -------- Run | Yrd Mat Min Sub Hostile Shots Fired 63 | . 24 . 39 Missed 16 | . 8 . 8 Hits 47 | . 16 . 31 Projectile 47 | . 16 . 31 Critical Strikes 2 | . . . 2 Damage Taken 874 | . 194 . 680 Core 266 | . 22 . 244 Absorbed by Shields . | . . . . Core Remaining (%) 100 | 100 . . . Volleys Fired 47 | . 18 . 29 Largest 2 | . 2 . 2 Hottest 100 | . 100 . 100 Shots Fired 69 | . 31 . 38 Gun 69 | . 31 . 38 Cannon . | . . . . Launcher . | . . . . Special . | . . . . Kinetic 21 | . . . 21 Thermal 48 | . 31 . 17 Explosive . | . . . . Electromagnetic . | . . . . Robot Hit Streak 24 | . 12 . 24 Robot Miss Streak 2 | . 2 . 1 Penetration Max . | . . . . Secondary Targets . | . . . . Shots Hit Robots 59 | . 24 . 35 Core Hits 14 | . 8 . 6 Critical Kills . | . . . . Critical Parts Destroyed . | . . . . Critical Strikes 4 | . 3 . 1 Burn 4 | . 3 . 1 Melee Attacks . | . . . . Impact . | . . . . Slashing . | . . . . Piercing . | . . . . Sneak Attacks . | . . . . Combat Hostiles . | . . . . Follow-up Attacks . | . . . . Damage Inflicted 632 | . 323 . 309 Guns 632 | . 323 . 309 Cannons . | . . . . Explosions . | . . . . Melee . | . . . . Ramming . | . . . . Kinetic 161 | . . . 161 Thermal 471 | . 323 . 148 Explosive . | . . . . Electromagnetic . | . . . . Impact . | . . . . Slashing . | . . . . Piercing . | . . . . Highest Corruption . | . . . . Average Corruption . | . . . . Corruption Purged . | . . . . Corruption Blocked . | . . . . Overload Shots . | . . . . Overflow Damage . | . . . . Projectiles . | . . . . Explosions . | . . . . Melee . | . . . . Knockbacks . | . . . . Impact . | . . . . Kinetic . | . . . . Secondary . | . . . . Self-Inflicted Damage . | . . . . Shots . | . . . . Rammed . | . . . . Targets Rammed . | . . . . Kicked . | . . . . Crushed . | . . . . Highest Temperature 284 | . 284 . 254 Average Temperature 118 | . 115 . 146 Received Heat Transfer 455 | . 105 . 350 Effects 1 | . 1 . . Interference 1 | . 1 . . Siege Activations . | . . . . Martial Activations . | . . . . Shielding Activations . | . . . . Robots Disrupted . | . . . . Combat Hostiles . | . . . . Robots Corrupted . | . . . . Combat Hostiles . | . . . . Parts Fried . | . . . . Impact Corruptions . | . . . . Robots Melted 1 | . 1 . . Combat Hostiles 1 | . 1 . . Parts Melted 1 | . 1 . . Heat Transferred 1531 | . 1184 . 347 Parts Sabotaged . | . . . . Parts Stolen . | . . . . Parts Stripped . | . . . . Power Chain Reactions . | . . . . Alert | -11 -10 -10 -10 ------- Run | Yrd Mat Min Sub Maximum Alert Level . | . . . . Low Security (%) 100 | 100 100 100 . Level 1 . | . . . . Level 2 . | . . . . Level 3 . | . . . . Level 4 . | . . . . Level 5 . | . . . . High Security . | . . . . Max Security . | . . . . Peak Influence 40 | . 40 15 . Initial 15 | . . 15 . Average 4 | . 8 1 . Influence Increases 125 | . 125 . . Destroy 0b10 Robot/C 80 | . 80 . . Destroy Leader 10 | . 10 . . Successful Hack 5 | . 5 . . Lose Combat Pursuer 30 | . 30 . . Influence Decreases 125 | . 85 40 . Entered New Map 25 | . . 25 . Time Decay 90 | . 75 15 . Lost Part 10 | . 10 . . Squads Dispatched . | . . . . Investigation . | . . . . Extermination . | . . . . Reinforcement . | . . . . Assault . | . . . . Garrison . | . . . . Intercept . | . . . . Searches Triggered . | . . . . Construction Impeded . | . . . . Haulers Reinforced . | . . . . Active Scanning Responses . | . . . . Cargo Convoy Interrupts . | . . . . Stealth | -11 -10 -10 -10 --------- Run | Yrd Mat Min Sub Distress Signals . | . . . . Communications Jammed . | . . . . Distress Signals . | . . . . Times Spotted 15 | . 9 . 6 Peak Tracking Total 2 | . 2 . 2 Tactical Retreats 1 | . 1 . . Traps | -11 -10 -10 -10 ------- Run | Yrd Mat Min Sub Traps Triggered . | . . . . Indirectly . | . . . . Trap Hack Attempts . | . . . . Triggered . | . . . . Disarmed . | . . . . Reprogrammed . | . . . . Reused . | . . . . Traps Extracted . | . . . . Installed . | . . . . Triggered . | . . . . Machines | -11 -10 -10 -10 ---------- Run | Yrd Mat Min Sub Machines Disabled . | . . . . Max in Single Turn . | . . . . Machines Repaired . | . . . . Machines Dismantled . | . . . . Machines Sabotaged . | . . . . Overloaded Fab Kills . | . . . . Hacking | -11 -10 -10 -10 --------- Run | Yrd Mat Min Sub Machines Accessed 2 | . 2 . . Terminals 2 | . 2 . . Fabricators . | . . . . Repair Stations . | . . . . Recycling Units . | . . . . Scanalyzers . | . . . . Garrison Access . | . . . . Total Hacks 4 | . 4 . . Successful 2 | . 2 . . Failed 2 | . 2 . . Catastrophic . | . . . . Database Lockouts . | . . . . Manual 4 | . 4 . . Terminals 4 | . 4 . . Fabricators . | . . . . Repair Stations . | . . . . Recycling Units . | . . . . Scanalyzers . | . . . . Garrison Access . | . . . . Terminal Hacks . | . . . . Fabricator Hacks . | . . . . Repair Station Hacks . | . . . . Recycling Unit Hacks . | . . . . Scanalyzer . | . . . . Garrison Access Hacks . | . . . . Unauthorized Hacks 2 | . 2 . . Terminals 2 | . 2 . . Botnet 2 | . 2 . . Fabricators . | . . . . Repair Stations . | . . . . Recycling Units . | . . . . Scanalyzers . | . . . . Garrison Access . | . . . . Data Cores Recovered . | . . . . Used . | . . . . Hacking Detections 2 | . 2 . . Full Trace Events . | . . . . Feedback Events . | . . . . Feedback Blocked . | . . . . Robot Schematics Acquired . | . . . . Robots Built . | . . . . Authchips . | . . . . Time . | . . . . Total Robot Build Rating . | . . . . Part Schematics Acquired . | . . . . Parts Built . | . . . . Authchips . | . . . . Time . | . . . . Total Part Build Rating . | . . . . Part Studies Acquired . | . . . . Parts Repaired . | . . . . Time . | . . . . Parts Recycled . | . . . . Recycled Matter . | . . . . Retrieved Matter . | . . . . Retrieved Components . | . . . . Parts Scanalyzed . | . . . . Part Schematics Acquired . | . . . . Parts Damaged . | . . . . Bothacking | -11 -10 -10 -10 ------------ Run | Yrd Mat Min Sub Used RIF Installer . | . . . . Robots Hacked . | . . . . Non-combat . | . . . . Combat . | . . . . Robot Hacks Applied . | . . . . Relay Couplers Released . | . . . . Fabnet Peak Effective % . | . . . . Robots Rewired . | . . . . Allies Hacked . | . . . . Hacks Repelled . | . . . . Allies | -11 -10 -10 -10 -------- Run | Yrd Mat Min Sub Total Allies 2 | . . 2 . Largest Group 2 | . . 2 2 Highest-Rated Group 41 | . . 41 41 Highest-Rated Ally 31 | . . 31 31 Total Orders . | . . . . Ally Attacks 26 | . . . 26 Total Damage 456 | . . . 456 Kills 2 | . . . 2 Allies Corrupted . | . . . . Allies Melted . | . . . . Intel | -11 -10 -10 -10 ------- Run | Yrd Mat Min Sub Active Infowar (turns) . | . . . . Robot Analysis Total . | . . . . Derelict Logs Recovered 1 | . . 1 . Drone Launches . | . . . . Drone Recoveries . | . . . . Exploration | -11 -10 -10 -10 ------------- Run | Yrd Mat Min Sub Turns Passed 1015 | 37 377 356 245 Spaces Moved 681 | 29 233 279 140 Core 22 | 14 . . 8 Treads . | . . . . Legs 659 | 15 233 279 132 Wheels . | . . . . Hover . | . . . . Flight . | . . . . Fastest Speed 50 | 50 120 120 50 Average Speed 118 | 103 120 120 116 Slowest Speed 150 | 150 120 120 120 Overloaded Moves . | . . . . Propulsion Burnouts . | . . . . Robots Hopped . | . . . . Potential Cave-ins . | . . . . Cave-ins Triggered . | . . . . Exploration Rate (%) 33 | 4 48 68 15 Regions Visited 3 Branch Regions 2 Pre-discovered Areas . | . . . . Known Exits Taken . | . . . . Unknown Exits Taken 3 | 1 1 1 . Scrap Searched 1 | . . 1 . Spaces Dug . | . . . . Terrain Destroyed . | . . . . Melee . | . . . . Projectile . | . . . . AOE . | . . . . Terrain Rammed . | . . . . Walls Destroyed . | . . . . Machines Disabled . | . . . . Actions | -11 -10 -10 -10 --------- Run | Yrd Mat Min Sub Total 814 | 33 298 300 183 Wait 68 | . 37 19 12 Move 678 | 28 232 278 140 Hop . | . . . . Pick Up 7 | . 6 1 . Fast Attach 10 | 5 3 . 2 Attach . | . . . . Detach . | . . . . Swap 2 | . 1 1 . Drop 2 | . 1 1 . Fire 47 | . 18 . 29 Melee . | . . . . Ram . | . . . . Kick . | . . . . Crush . | . . . . Escape Stasis . | . . . . Rewire . | . . . . Trap . | . . . . Miscellaneous . | . . . . Route ------- -11/Scrapyard -10/Materials (discovered 2 exits: [*Min x2]) -10/Mines (discovered 2 exits: [*Mat] / [*Sub]) -10/Subcaves History --------- Turn | Location | Event 11 | -11/Scrapyard | Discovered new exit (range 15) 38 | -11/Scrapyard | Entered Materials 316 | -10/Materials | Build established: Mutant 349 | -10/Materials | Discovered new exit (range 5) 349 | -10/Materials | Discovered new exit (range 8) 415 | -10/Materials | Entered Mines 569 | -10/Mines | Found a damaged Exp. Sensor Array with a note attached 574 | -10/Mines | Found Prototype Device 610 | -10/Mines | Discovered new exit (range 9) 699 | -10/Mines | Received a Rocket Launcher from a helpful Derelict 751 | -10/Mines | Discovered new exit (range 4) 771 | -10/Mines | Entered Subcaves 771 | -10/Subcaves | Accompanied by 2 allies 772 | -10/Subcaves | Approached by a straggling Scientist 776 | -10/Subcaves | Led the pair of lost Derelicts to an unsafe place 973 | -10/Subcaves | Core integrity fell below 50% 1010 | -10/Subcaves | Core integrity fell below 20% 1016 | -10/Subcaves | Destroyed by U6-1RZ(R) with Subdweller Laser Last Messages --------------- A1-INM(g): "Terrible idea. Terrible." BD-HQY(c): "I think it's somewhere southwest of here" A1-INM(g) suffers critical hit (Destroy). IE-173(R) suffers critical hit (Burn). Med. Laser destroyed. IE-173(R) destroyed. T7-BIA(R) destroyed. F0-8V3(R) destroyed. BD-HQY(c): "I think it's somewhere southwest of here" Acquired Sub. Laser. BD-HQY(c) destroyed. Assault Rifle destroyed. Aluminum Leg destroyed. Lgt. Nuclear Core destroyed. Critical hit (Meltdown: +260). Tech Extrapolator violently self-destructs. Sub. Laser destroyed. Acquired 19 matter. Map ----- +----------------------------------------------------+ | ?????????????????????# ??????????? | | ?????????????????????# ??????????? | | ?????????????????????# ####??????????? | | ?????????????????????# ##?????????????? | | ?????????????????????# #??????????????? | | ?????????????????????## ###????????????? | | ??????????????????????# #????????????? | | ?????????????????????## #????????????? | | ????????????????????## #??????????? | | ????????????????????# ??????????? | | ????????????????????# ???????????? | | ?????????????###????## ???????????? | | ?????????????# ????## #### ###????????????? | | ?????????????? ##??# ##??# #??????????????? | | ???????????????# #### #### #??????????????? | | ????????? ???# ## ##?????????????? | | ??????? """"## #?????????????? | | ????????"""" " % & #### #????????????? | | ????????""" """"=%! ##???? ??????????????? | | ????????" " "" "## ## = = #????????????????????? | | ?????????""### "#######%* #??##????????????????? | | ?????????????## " ?????#! ## ##???????????????? | | ??????????????##""?????#= ##??????????????? | | ???????????????## ####R! #??????????????? | | ?????????????????## "; ! ## #?????????????? | | ???????????????#" """ @ ##????????????????? | | ????????????????""""" #?????????????????? | | ?????????????????"### #?????????????????? | | ????????????????????#### ???????????????? | | ???????????????????????###R ?????????????? | | ?????????????????????????? #????????????? | | ?????????????????????????? #????????????? | | ?????????????????????????? ####????????????? | | ?????????????????????????? ##???????????????? | | ?????????????????????????? #????????????????? | | ?????????????????????????? # ????????????????? | | ?????????????????????????? ???????????????? | | ??????????????????????????? ? ??????????????? | | ??????????????????????????? "#????????????????? | | ??????????????????????????? ???????????????????? | | ??????????????????????????? ?????????????????????? | | ?????????????????????????????????????????????????? | | ?????????????????????????????????????????????????? | | ?????????????????????????????????????????????????? | | ?????????????????????????????????????????????????? | | ?????????????????????????????????????????????????? | | ?????????????????????????????????????????????????? | | ?????????????????????????????????????????????????? | | ?????????????????????????????????????????????????? | | ?????????????????????????????????????????????????? | +----------------------------------------------------+ Best States ------------- Heat Dissipation 25 Energy Generation 14 Energy Capacity 160 Matter Stores 300 Matter Capacity 300 Sight Range 16 Terrain Scan Density 10 Evasion (%) 55 Targeting Accuracy 12 Item Schematics ----------------- None Robot Schematics ------------------ None Fabricated ------------ Nothing Repaired ---------- Nothing Studied --------- None Alien Tech Used ----------------- None Achievements -------------- None Challenges ------------ None Game ------ Seed ImpactModifiedBarrier Manual? 0 Play Time 00:09:45 Cumulative 41.5 hours Start 2026.06.29 @ 19:27:50 End 2026.06.29 @ 19:35:05 Sessions 1 Manual Loads 0 Difficulty Rogue Special Mode None Game No. 44 Rogue 44 Adventurer 0 Explorer 0 Win Type - Total 0 Types 0/0/0/0/0/0/0/0/0/0 Lore% 50 Gallery% 33 Achievement% 30 Wizard Run 0 Options --------- Layout 1 ASCII 0 Keyboard 1 Movement Numpad Keybinds 0 Fullscreen 1 Font 24/X11 Map View 50x35 Zoom Use 0% Tactical HUD 0 Map Filters NONE Filters NONE Steam 1 RUN: 0c97a35d-926f-4dd9-a47a-cb69ea9923cd